bitfinex-derivatives/quotes_SOLF0:USTF0_20260310
["timestamp","ask_amount","ask_price","bid_price","bid_amount"]
[1773153774853,3.67343504,86.726,86.647,3.9790239]
[1773153775355,10.379,86.703,86.647,3.9790239]
[1773153775951,3.67343504,86.726,86.664,3.9790239]
[1773153776147,3.67343504,86.726,86.64,9.14316138]
[1773153776348,3.67343504,86.726,86.643,3.9790239]
[1773153776551,10.379,86.704,86.643,3.9790239]
[1773153776751,3.67343504,86.704,86.643,3.9790239]
[1773153777353,10.381,86.692,86.643,3.9790239]
[1773153778156,10.38,86.701,86.646,3.9790239]
[1773153778755,10.38,86.701,86.648,10.386]
[1773153779354,3.67343504,86.693,86.64,10.387]
[1773153779555,3.67343504,86.693,86.625,3.9790239]
[1773153779958,3.67343504,86.719,86.625,3.9790239]
[1773153780455,3.67343504,86.683,86.625,3.9790239]
[1773153780957,10.383,86.671,86.625,3.9790239]
[1773153781260,3.67343504,86.683,86.625,3.9790239]
[1773153781462,3.67343504,86.699,86.625,3.9790239]
[1773153781961,3.67343504,86.717,86.652,3.9790239]
[1773153782366,3.67343504,86.739,86.661,3.9790239]
[1773153782658,3.67343504,86.739,86.687,10.381]
[1773153782960,3.67343504,86.759,86.681,3.9790239]
[1773153783256,3.67343504,86.759,86.64,9.14316138]
[1773153783257,3.67343504,86.759,86.701,3.9790239]
[1773153783659,3.67343504,86.759,86.643,34.66]
[1773153783660,3.67343504,86.749,86.661,3.9790239]
[1773153783855,9.14316138,86.75,86.641,3.9790239]
[1773153783856,3.67343504,86.729,86.641,3.9790239]
[1773153784054,3.67343504,86.709,86.641,3.9790239]
[1773153784453,9.14316138,86.75,86.652,3.9790239]
[1773153784454,3.67343504,86.74,86.652,3.9790239]
[1773153784760,3.67343504,86.739,86.643,3.9790239]
[1773153785159,3.67343504,86.72,86.643,3.9790239]
[1773153785357,3.67343504,86.719,86.643,3.9790239]
[1773153786664,3.67343504,86.679,86.602,3.9790239]
[1773153787758,3.67343504,86.661,86.581,3.9790239]
[1773153787962,9.14316138,86.66,86.581,3.9790239]
[1773153788163,3.67343504,86.659,86.581,3.9790239]
[1773153789361,10.387,86.642,86.594,10.392]
[1773153790164,10.385,86.651,86.586,3.9790239]
[1773153791166,10.386,86.643,86.59,10.393]
[1773153791459,3.67343504,86.659,86.586,3.9790239]
[1773153791857,10.388,86.635,86.586,3.9790239]
[1773153792055,10.388,86.635,86.56,9.14316138]
[1773153792056,3.67343504,86.641,86.566,3.9790239]
[1773153792262,3.67343504,86.639,86.566,3.9790239]
[1773153792459,10.39,86.617,86.566,3.9790239]
[1773153793256,3.67343504,86.639,86.575,284.18813542]
[1773153793464,3.67343504,86.658,86.581,3.9790239]
[1773153793866,10.384,86.664,86.604,3.9790239]
[1773153794069,3.67343504,86.679,86.604,3.9790239]
[1773153794263,3.67343504,86.709,86.604,3.9790239]
[1773153794566,3.67343504,86.709,86.58,29.93116138]
[1773153794567,10.381,86.692,86.621,3.9790239]
[1773153794764,3.67343504,86.709,86.621,3.9790239]
[1773153795565,3.67343504,86.709,86.631,3.9790239]
[1773153797364,3.92480056,86.706,86.631,3.9790239]
[1773153799462,3.92480056,86.706,86.639,3.94788812]
[1773153799663,3.92480056,86.729,86.66,13.0910495]
[1773153799868,10.376,86.727,86.679,10.382]
[1773153800067,10.376,86.727,86.661,3.94788812]
[1773153800368,3.92480056,86.729,86.661,3.94788812]
[1773153800562,10.377,86.719,86.67,10.383]
[1773153801772,10.377,86.719,86.661,14.33188812]
[1773153801969,10.378,86.711,86.661,10.384]
[1773153802164,3.92480056,86.729,86.641,3.94788812]
[1773153802365,3.92480056,86.729,86.661,3.94788812]
[1773153803670,20.743,86.771,86.661,3.94788812]
[1773153803671,3.92480056,86.759,86.661,3.94788812]
[1773153804466,3.92480056,86.759,86.681,3.94788812]
[1773153805277,10.374,86.747,86.689,10.381]
[1773153805474,3.92480056,86.759,86.69,3.96532209]
[1773153805679,15.74147899,86.765,86.701,3.96532209]
[1773153805976,15.74147899,86.765,86.7,9.11699116]
[1773153805977,11.84338683,86.765,86.716,3.96532209]
[1773153806166,3.89809216,86.764,86.696,3.96532209]
[1773153806572,3.89809216,86.763,86.697,10.38]
[1773153806773,3.89809216,86.763,86.696,3.96532209]
[1773153807175,10.373,86.753,86.697,10.38]
[1773153807377,3.89809216,86.763,86.696,3.96532209]
[1773153807681,11.84338683,86.765,86.701,3.96532209]
[1773153808178,11.84338683,86.765,86.7,9.11699116]
[1773153808179,11.84338683,86.765,86.706,3.96532209]
[1773153808380,3.89809216,86.764,86.706,3.96532209]
[1773153809383,10.373,86.755,86.706,3.96532209]
[1773153810085,3.89809216,86.764,86.706,3.96532209]
[1773153811389,10.372,86.762,86.707,10.379]
[1773153811988,10.372,86.762,86.707,14.34432209]
[1773153812188,10.373,86.754,86.707,3.96532209]
[1773153812388,3.89809216,86.764,86.697,10.38]
[1773153812984,3.89809216,86.756,86.701,10.379]
[1773153813488,3.89809216,86.756,86.698,3.96532209]
[1773153813796,3.89809216,86.756,86.679,3.96532209]
[1773153814188,10.376,86.73,86.679,3.96532209]
[1773153814385,3.89809216,86.73,86.661,3.96532209]
[1773153814794,10.378,86.713,86.661,3.96532209]
[1773153814995,3.89809216,86.729,86.641,3.96532209]
[1773153815892,3.89809216,86.698,86.621,3.96532209]
[1773153816196,3.89809216,86.689,86.621,3.96532209]
[1773153816392,10.382,86.678,86.633,10.388]
[1773153816592,3.89809216,86.689,86.621,3.96532209]
[1773153816786,3.89809216,86.689,86.601,3.96532209]
[1773153816991,3.89809216,86.689,86.621,10.389]
[1773153817586,10.382,86.678,86.629,10.388]
[1773153818095,3.89809216,86.689,86.629,10.388]
[1773153818397,14.20429333,86.751,86.58,29.90499116]
[1773153818398,3.89809216,86.71,86.647,3.96532209]
[1773153818692,10.376,86.729,86.679,10.382]
[1773153818899,3.89809216,86.749,86.665,3.96532209]
[1773153819394,10.376,86.731,86.678,10.382]
[1773153819595,3.89809216,86.749,86.665,3.96532209]
[1773153820498,14.27409216,86.734,86.665,3.96532209]
[1773153821194,3.89809216,86.734,86.665,3.96532209]
[1773153821995,3.89809216,86.734,86.604,21.01741243]
[1773153821996,10.379,86.708,86.654,10.385]
[1773153822192,10.379,86.708,86.646,3.96532209]
[1773153822193,3.89809216,86.729,86.646,3.96532209]
[1773153822796,3.89809216,86.729,86.671,10.383]
[1773153823295,3.89809216,86.729,86.651,3.96532209]
[1773153823496,10.38,86.694,86.643,10.386]
[1773153823797,3.89809216,86.709,86.632,3.96532209]
[1773153823997,3.89809216,86.709,86.65,10.385]
[1773153824498,3.89809216,86.709,86.655,10.385]
[1773153824998,3.89809216,86.709,86.632,3.96532209]
[1773153825189,9.11699116,86.73,86.653,3.96532209]
[1773153825391,3.89809216,86.733,86.653,3.96532209]
[1773153826096,10.377,86.725,86.67,10.383]
[1773153827202,3.89809216,86.733,86.653,3.96532209]
[1773153827697,10.376,86.73,86.677,10.382]
[1773153827890,3.89809216,86.733,86.671,3.97044054]
[1773153828402,3.89809216,86.733,86.685,10.381]
[1773153828403,10.376,86.731,86.685,10.381]
[1773153830097,10.376,86.731,86.65,9.11699116]
[1773153830098,3.77553843,86.758,86.686,3.97044054]
[1773153831097,14.14853843,86.758,86.686,3.97044054]
[1773153831401,3.77553843,86.758,86.691,3.97044054]
[1773153831801,10.372,86.766,86.719,10.377]
[1773153832004,3.77553843,86.777,86.719,10.377]
[1773153832201,3.77553843,86.764,86.687,3.97044054]
[1773153832906,3.77553843,86.746,86.689,10.381]
[1773153833403,3.77553843,86.746,86.687,3.97044054]
[1773153833608,10.376,86.734,86.688,10.381]
[1773153833806,10.376,86.734,86.67,3.97044054]
[1773153834002,3.77553843,86.764,86.67,3.97044054]
[1773153834209,10.374,86.749,86.7,10.38]
[1773153834707,3.77553843,86.744,86.7,10.38]
[1773153834902,3.77553843,86.744,86.707,10.379]
[1773153835303,3.77553843,86.744,86.628,34.66]
[1773153835304,3.77553843,86.729,86.649,3.97044054]
[1773153836407,3.77553843,86.729,86.651,3.97044054]
[1773153836408,10.377,86.724,86.651,3.97044054]
[1773153837112,10.377,86.724,86.65,9.11699116]
[1773153837113,3.77553843,86.729,86.668,3.97044054]
[1773153837313,3.77553843,86.729,86.651,3.97044054]
[1773153837514,3.77553843,86.729,86.67,3.97044054]
[1773153838606,3.77553843,86.757,86.67,3.97044054]
[1773153838909,3.77553843,86.755,86.67,3.97044054]
[1773153839107,3.77553843,86.753,86.67,3.97044054]
[1773153839307,8.67615102,86.752,86.671,3.97044054]
[1773153839508,8.67615102,86.751,86.671,3.97044054]
[1773153839709,8.67615102,86.75,86.671,3.97044054]
[1773153839909,10.374,86.749,86.699,10.38]
[1773153840301,3.77553843,86.763,86.689,3.97044054]
[1773153840508,3.77553843,86.761,86.689,3.97044054]
[1773153840812,9.11699116,86.78,86.689,3.97044054]
[1773153840813,3.77553843,86.759,86.689,3.97044054]
[1773153841014,3.77553843,86.752,86.668,3.97044054]
[1773153841313,3.77553843,86.75,86.668,3.97044054]
[1773153841615,3.77553843,86.739,86.668,3.97044054]
[1773153842011,3.77553843,86.721,86.65,3.97044054]
[1773153842212,9.11699116,86.76,86.631,3.97044054]
[1773153842213,3.77553843,86.719,86.631,3.97044054]
[1773153842412,3.77553843,86.717,86.631,3.97044054]
[1773153842718,3.77553843,86.717,86.581,21.06108463]
[1773153842719,3.77553843,86.715,86.647,3.97044054]
[1773153843411,3.77553843,86.715,86.627,3.97044054]
[1773153843618,3.77553843,86.713,86.627,3.97044054]
[1773153843918,3.77553843,86.711,86.627,3.97044054]
[1773153844114,10.38,86.697,86.652,10.385]
[1773153845113,14.15453843,86.705,86.652,10.385]
[1773153845319,3.77553843,86.704,86.652,10.385]
[1773153845819,10.379,86.702,86.652,10.385]
[1773153846014,10.379,86.702,86.627,3.97044054]
[1773153846015,3.77553843,86.699,86.627,3.97044054]
[1773153846212,3.77553843,86.719,86.627,3.97044054]
[1773153846415,10.378,86.712,86.627,3.97044054]
[1773153846719,8.67615102,86.711,86.627,3.97044054]
[1773153846922,3.77553843,86.699,86.621,3.97044054]
[1773153847110,10.382,86.682,86.621,3.97044054]
[1773153847310,9.11699116,86.7,86.621,3.97044054]
[1773153847311,3.77553843,86.697,86.621,3.97044054]
[1773153847509,3.77553843,86.695,86.638,10.387]
[1773153847712,9.11699116,86.7,86.621,3.97044054]
[1773153847713,10.381,86.691,86.621,3.97044054]
[1773153847918,3.77553843,86.694,86.621,3.97044054]
[1773153848421,10.381,86.686,86.632,10.388]
[1773153848621,3.77553843,86.685,86.632,10.388]
[1773153848817,3.77553843,86.685,86.621,3.97044054]
[1773153849418,3.77553843,86.685,86.639,10.387]
[1773153850017,10.382,86.683,86.631,10.388]
[1773153850223,3.77553843,86.685,86.621,3.97044054]
[1773153850622,20.754,86.723,86.621,3.97044054]
[1773153850623,10.383,86.669,86.621,10.389]
[1773153850822,3.77553843,86.679,86.602,3.97044054]
[1773153851222,10.384,86.661,86.604,10.391]
[1773153851423,10.384,86.661,86.602,3.97044054]
[1773153851424,3.77553843,86.662,86.602,3.97044054]
[1773153852128,29.87699116,86.7,86.576,3.97044054]
[1773153852129,3.77553843,86.659,86.576,3.97044054]
[1773153852315,3.77553843,86.659,86.585,10.393]
[1773153852519,9.11699116,86.66,86.576,3.97044054]
[1773153852520,3.77553843,86.657,86.576,3.97044054]
[1773153852816,3.77553843,86.655,86.576,3.97044054]
[1773153853221,3.77553843,86.655,86.593,10.392]
[1773153854226,3.77553843,86.655,86.601,10.391]
[1773153854527,3.77553843,86.679,86.593,3.97044054]
[1773153854725,10.67318835,86.729,86.59,9.11699116]
[1773153854726,3.77553843,86.699,86.637,10.387]
[1773153855020,3.77553843,86.699,86.635,3.97044054]
[1773153855021,3.77553843,86.719,86.635,3.97044054]
[1773153855421,3.77553843,86.719,86.664,10.384]
[1773153856220,3.77553843,86.719,86.672,10.383]
[1773153856420,3.77553843,86.719,86.653,3.97044054]
[1773153856821,3.77553843,86.719,86.663,10.384]
[1773153857320,9.11699116,86.73,86.621,20.779]
[1773153857321,3.9643955,86.709,86.654,10.385]
[1773153857527,3.9643955,86.709,86.634,3.69259997]
[1773153858219,10.38,86.7,86.644,10.386]
[1773153858625,3.9643955,86.706,86.634,3.69259997]
[1773153858826,3.9643955,86.725,86.641,3.69259997]
[1773153859826,3.9643955,86.723,86.63,3.69259997]
[1773153860029,3.9643955,86.721,86.63,3.69259997]
[1773153860221,3.9643955,86.719,86.63,3.69259997]
[1773153860427,3.9643955,86.717,86.63,3.69259997]
[1773153860625,3.9643955,86.715,86.63,3.69259997]
[1773153860826,12.64054652,86.714,86.63,3.69259997]
[1773153861028,8.67615102,86.713,86.63,3.69259997]
[1773153861227,3.9643955,86.714,86.63,3.69259997]
[1773153861228,10.378,86.71,86.657,10.385]
[1773153861427,8.67615102,86.709,86.657,10.385]
[1773153861824,3.9643955,86.712,86.657,10.385]
[1773153862025,9.11699116,86.73,86.657,10.385]
[1773153862026,3.9643955,86.71,86.657,10.385]
[1773153862224,3.9643955,86.708,86.657,10.385]
[1773153862528,3.9643955,86.704,86.63,3.69259997]
[1773153863728,8.67615102,86.706,86.63,3.69259997]
[1773153863926,3.9643955,86.748,86.661,3.23470325]
[1773153864323,3.9643955,86.728,86.673,10.383]
[1773153864835,10.377,86.719,86.664,10.384]
[1773153865028,3.9643955,86.718,86.644,3.23050037]
[1773153867335,3.9643955,86.708,86.653,10.385]
[1773153868237,3.9643955,86.69,86.635,10.387]
[1773153869040,14.3453955,86.688,86.635,10.387]
[1773153869236,3.9643955,86.688,86.626,3.24330027]
[1773153869441,3.9643955,86.688,86.601,3.18899076]
[1773153869643,3.9643955,86.677,86.616,10.39]
[1773153870235,3.9643955,86.67,86.601,3.18899076]
[1773153871242,3.9643955,86.667,86.601,3.18899076]
[1773153871944,3.9643955,86.664,86.604,10.391]
[1773153872642,10.386,86.647,86.592,10.392]
[1773153872839,3.9643955,86.664,86.583,3.16317662]
[1773153873241,14.3493955,86.657,86.598,10.392]
[1773153873447,3.9643955,86.656,86.583,3.16317662]
[1773153874137,14.3493955,86.653,86.597,10.392]
[1773153874840,3.9643955,86.649,86.585,13.55114748]
[1773153875047,3.9643955,86.649,86.585,3.15814748]
[1773153875551,3.9643955,86.649,86.602,10.391]
[1773153875747,3.9643955,86.649,86.585,3.15814748]
[1773153877441,14.3503955,86.649,86.592,10.393]
[1773153877843,3.9643955,86.649,86.609,10.39]
[1773153878651,10.383,86.669,86.617,10.39]
[1773153878948,3.9643955,86.686,86.603,3.11620214]
[1773153879143,3.9643955,86.686,86.635,10.387]
[1773153879744,10.382,86.684,86.635,10.387]
[1773153880147,3.9643955,86.686,86.635,10.387]
[1773153880551,3.9643955,86.686,86.627,10.388]
[1773153880752,3.9643955,86.686,86.621,3.1439149]
[1773153880954,3.9643955,86.684,86.621,3.1439149]
[1773153881253,3.9643955,86.667,86.616,10.39]
[1773153882656,3.9643955,86.667,86.623,10.389]
[1773153884149,10.384,86.666,86.613,10.39]
[1773153885753,3.9643955,86.661,86.613,10.39]
[1773153886154,3.9643955,86.661,86.621,10.389]
[1773153886654,3.71990516,86.679,86.618,3.38898317]
[1773153886957,3.71990516,86.679,86.599,20.784]
[1773153886958,8.72217414,86.709,86.641,3.38898317]
[1773153887159,8.72217414,86.708,86.641,3.38898317]
[1773153887360,3.937812,86.711,86.658,10.385]
[1773153887562,9.12203468,86.73,86.641,3.38898317]
[1773153887563,3.937812,86.709,86.641,3.38898317]
[1773153887760,3.937812,86.707,86.641,3.38898317]
[1773153888060,3.937812,86.705,86.641,3.38898317]
[1773153888256,3.937812,86.703,86.641,3.38898317]
[1773153888461,3.937812,86.701,86.641,3.38898317]
[1773153888662,8.72217414,86.7,86.641,3.38898317]
[1773153888862,8.72217414,86.699,86.641,3.38898317]
[1773153889058,8.72217414,86.698,86.641,3.38898317]
[1773153889263,3.937812,86.701,86.641,3.38898317]
[1773153889458,8.85071938,86.7,86.641,3.38898317]
[1773153889657,8.85071938,86.699,86.641,3.38898317]
[1773153889862,3.937812,86.701,86.641,3.38898317]
[1773153890065,8.85071938,86.7,86.641,3.38898317]
[1773153890259,3.937812,86.701,86.641,3.38898317]
[1773153890260,8.85071938,86.699,86.641,3.38898317]
[1773153890459,3.937812,86.701,86.641,3.38898317]
[1773153890460,8.85071938,86.698,86.656,10.385]
[1773153890662,3.937812,86.701,86.656,10.385]
[1773153890963,8.85099595,86.7,86.656,10.385]
[1773153891162,8.85099595,86.699,86.656,10.385]
[1773153891362,10.38,86.699,86.656,10.385]
[1773153891562,8.85093903,86.698,86.656,10.385]
[1773153891765,10.38,86.699,86.656,10.385]
[1773153891965,3.937812,86.701,86.664,10.384]
[1773153892168,8.85081437,86.7,86.664,10.384]
[1773153892466,3.937812,86.701,86.664,10.384]
[1773153892666,8.85061354,86.7,86.664,10.384]
[1773153892868,3.937812,86.701,86.664,10.384]
[1773153893060,8.85061354,86.7,86.664,10.384]
[1773153893257,3.937812,86.701,86.664,10.384]
[1773153893461,8.85023073,86.7,86.664,10.384]
[1773153893657,3.937812,86.701,86.664,10.384]
[1773153893967,8.85023073,86.7,86.664,10.384]
[1773153894161,3.937812,86.701,86.664,10.384]
[1773153894358,19.22985965,86.7,86.656,10.385]
[1773153894568,10.38,86.7,86.656,10.385]
[1773153894761,8.85011175,86.699,86.656,10.385]
[1773153894961,3.937812,86.701,86.656,10.385]
[1773153895774,10.38,86.696,86.648,10.386]
[1773153896067,3.937812,86.701,86.648,10.386]
[1773153896266,8.85011175,86.7,86.648,10.386]
[1773153896465,8.85011175,86.699,86.654,10.385]
[1773153896665,3.937812,86.701,86.654,10.385]
[1773153898271,10.38,86.699,86.654,10.385]
[1773153898473,3.937812,86.698,86.654,10.385]
[1773153898773,8.85316081,86.697,86.654,10.385]
[1773153898972,3.937812,86.698,86.66,10.384]
[1773153900069,3.937812,86.715,86.661,3.44323392]
[1773153900269,3.937812,86.713,86.661,3.44323392]
[1773153900465,3.937812,86.711,86.661,3.44323392]
[1773153900774,10.38,86.697,86.661,3.44323392]
[1773153901568,10.38,86.697,86.611,14.07127692]
[1773153901569,3.937812,86.726,86.664,3.48340494]
[1773153901766,8.85606837,86.725,86.664,3.48340494]
[1773153902069,9.12203468,86.76,86.671,3.48340494]
[1773153902070,3.937812,86.742,86.671,3.48340494]
[1773153902268,12.79388037,86.741,86.671,3.48340494]
[1773153902469,12.79388037,86.74,86.671,3.48340494]
[1773153902669,10.376,86.729,86.69,10.381]
[1773153902871,3.937812,86.727,86.655,3.47914702]
[1773153903077,3.937812,86.727,86.576,28.08452202]
[1773153903078,3.937812,86.719,86.638,3.47914702]
[1773153903276,3.937812,86.717,86.638,3.47914702]
[1773153903472,3.937812,86.715,86.638,3.47914702]
[1773153903678,9.12203468,86.76,86.61,20.781]
[1773153903679,3.937812,86.699,86.622,3.47914702]
[1773153903972,9.12203468,86.7,86.634,10.387]
[1773153903973,10.382,86.683,86.634,10.387]
[1773153904173,3.937812,86.695,86.622,3.47914702]
[1773153904373,48.83750714,86.878,86.631,3.36751758]
[1773153904374,3.937812,86.709,86.631,3.36751758]
[1773153904574,3.937812,86.709,86.651,3.36751758]
[1773153904765,3.937812,86.709,86.608,21.06108463]
[1773153904766,3.937812,86.707,86.631,3.36751758]
[1773153904968,9.12203468,86.76,86.594,3.36751758]
[1773153904969,3.937812,86.679,86.594,3.36751758]
[1773153905168,3.937812,86.677,86.594,3.36751758]
[1773153905368,3.937812,86.675,86.594,3.36751758]
[1773153905568,3.937812,86.675,86.58,9.12203468]
[1773153905569,14.320812,86.67,86.624,10.389]
[1773153905764,14.320812,86.67,86.611,3.36751758]
[1773153905765,8.85464213,86.669,86.611,3.36751758]
[1773153905966,3.937812,86.67,86.611,3.36751758]
[1773153905967,8.85464213,86.668,86.611,3.36751758]
[1773153906166,3.937812,86.67,86.622,10.389]
[1773153906776,10.383,86.669,86.622,10.389]
[1773153906973,10.383,86.669,86.581,14.11869381]
[1773153906974,3.937812,86.687,86.621,3.20810857]
[1773153907279,3.937812,86.703,86.621,3.20810857]
[1773153907479,8.85963658,86.71,86.667,10.384]
[1773153907675,3.937812,86.722,86.667,10.384]
[1773153907676,8.85525514,86.721,86.667,10.384]
[1773153907974,8.85525514,86.72,86.661,3.20810857]
[1773153908173,8.85422851,86.719,86.666,10.384]
[1773153908375,3.937812,86.739,86.661,3.20810857]
[1773153908680,3.937812,86.737,86.661,3.20810857]
[1773153908880,3.937812,86.735,86.661,3.20810857]
[1773153909082,3.937812,86.733,86.661,3.20810857]
[1773153909381,3.937812,86.731,86.661,3.20810857]
[1773153909576,3.937812,86.729,86.661,3.20810857]
[1773153909876,6.98098738,86.728,86.643,3.21868392]
[1773153910182,9.12203468,86.75,86.661,3.77157717]
[1773153910376,10.377,86.719,86.661,3.77157717]
[1773153910583,9.12203468,86.75,86.661,3.77157717]
[1773153911983,10.377,86.726,86.678,10.382]
[1773153912385,3.937812,86.729,86.668,10.383]
[1773153912583,3.937812,86.729,86.661,3.77157717]
[1773153913086,10.377,86.719,86.661,3.77157717]
[1773153913480,10.376,86.727,86.661,3.77157717]
[1773153913685,3.937812,86.749,86.661,3.77157717]
[1773153913886,3.937812,86.749,86.681,3.77157717]
[1773153914182,3.937812,86.766,86.698,3.77157717]
[1773153914686,3.937812,86.764,86.698,3.77157717]
[1773153914886,3.937812,86.764,86.712,10.378]
[1773153915682,3.937812,86.764,86.719,10.377]
[1773153916186,3.937812,86.764,86.698,3.77157717]
[1773153916486,3.937812,86.764,86.719,10.377]
[1773153916686,11.84338683,86.765,86.72,3.77157717]
[1773153917084,11.84338683,86.765,86.725,10.377]
[1773153917284,3.937812,86.764,86.702,3.77157717]
[1773153917685,11.84338683,86.765,86.715,3.6721712]
[1773153918386,3.81810522,86.764,86.691,3.6721712]
[1773153918780,10.374,86.748,86.692,10.381]
[1773153919189,3.81810522,86.764,86.693,3.6721712]
[1773153919587,10.373,86.756,86.707,10.379]
[1773153920891,3.81810522,86.764,86.713,10.378]
[1773153921095,22.21538683,86.765,86.714,3.6721712]
[1773153921096,11.84338683,86.765,86.714,3.6721712]
[1773153921783,11.84338683,86.765,86.729,10.376]
[1773153921980,11.84338683,86.765,86.714,3.6721712]
[1773153922581,0.00038683,86.765,86.714,3.6721712]
[1773153922785,0.00038683,86.765,86.71,9.12203468]
[1773153922786,8.71237389,86.815,86.731,3.6721712]
[1773153922985,8.71237389,86.815,86.71,9.12203468]
[1773153922986,3.81810522,86.83,86.751,3.6721712]
[1773153923182,3.81810522,86.83,86.762,3.6721712]
[1773153923390,3.81810522,86.83,86.771,3.6721712]
[1773153924289,9.12203468,86.86,86.712,11.72068675]
[1773153924290,10.363,86.84,86.773,3.6721712]
[1773153924689,8.71237389,86.863,86.795,3.6721712]
[1773153924891,8.71237389,86.863,86.77,9.12203468]
[1773153924892,3.81810522,86.885,86.82,9.12203468]
[1773153925090,3.81810522,86.885,86.801,3.6721712]
[1773153925386,3.81810522,86.869,86.782,3.6721712]
[1773153925693,3.81810522,86.899,86.81,9.08599666]
[1773153925994,181.757,86.925,86.801,3.6721712]
[1773153925995,3.81810522,86.867,86.801,3.6721712]
[1773153926383,2.0040311,86.906,86.781,3.6721712]
[1773153926384,10.364,86.828,86.781,3.6721712]
[1773153926690,10.364,86.828,86.712,11.72068675]
[1773153926691,3.81810522,86.827,86.741,3.6721712]
[1773153927090,3.81810522,86.827,86.761,3.6721712]
[1773153927785,10.365,86.826,86.761,3.6721712]
[1773153927989,14.18310522,86.826,86.761,3.6721712]
[1773153928486,3.81810522,86.814,86.749,10.374]
[1773153928880,3.81810522,86.814,86.757,10.373]
[1773153929083,3.81810522,86.814,86.757,14.0451712]
[1773153929790,3.81810522,86.814,86.757,3.6721712]
[1773153930385,10.366,86.812,86.757,3.6721712]
[1773153931086,3.81810522,86.814,86.737,3.6721712]
[1773153931290,3.81810522,86.809,86.717,3.6721712]
[1773153931492,3.81810522,86.789,86.717,3.6721712]
[1773153931683,10.371,86.772,86.717,3.6721712]
[1773153931890,3.81810522,86.789,86.721,3.6721712]
[1773153932089,3.81810522,86.809,86.721,3.6721712]
[1773153932890,9.08599666,86.81,86.659,3.6721712]
[1773153932891,3.81810522,86.78,86.659,3.6721712]
[1773153933192,3.81810522,86.759,86.671,3.6721712]
[1773153933381,10.373,86.757,86.696,10.38]
[1773153933588,10.373,86.757,86.67,9.08599666]
[1773153933589,3.81810522,86.756,86.693,3.6721712]
[1773153934394,10.374,86.75,86.693,3.6721712]
[1773153934690,3.81810522,86.739,86.67,3.6721712]
[1773153935092,10.375,86.735,86.671,10.383]
[1773153935889,3.81810522,86.725,86.651,3.6721712]
[1773153936088,20.739,86.787,86.64,9.08599666]
[1773153936089,3.81810522,86.745,86.661,3.6721712]
[1773153936593,3.81810522,86.745,86.66,9.08599666]
[1773153936594,3.81810522,86.745,86.681,3.6721712]
[1773153936789,9.08599666,86.76,86.681,3.6721712]
[1773153937588,3.81810522,86.759,86.681,3.6721712]
[1773153937794,10.373,86.757,86.682,10.382]
[1773153937993,3.81810522,86.759,86.682,10.382]
[1773153938390,9.08599666,86.76,86.644,3.6721712]
[1773153938391,3.81810522,86.732,86.644,3.6721712]
[1773153938789,3.81810522,86.728,86.644,3.6721712]
[1773153938986,3.81810522,86.719,86.644,3.6721712]
[1773153939386,3.81810522,86.719,86.62,9.08599666]
[1773153939387,3.81810522,86.704,86.627,10.388]
[1773153939596,3.81810522,86.699,86.622,3.6721712]
[1773153939792,3.81810522,86.691,86.622,3.6721712]
[1773153939995,3.81810522,86.679,86.601,3.6721712]
[1773153940499,161.375,86.75,86.601,3.6721712]
[1773153940500,3.81810522,86.698,86.601,3.6721712]
[1773153940690,3.81810522,86.698,86.621,3.6721712]
[1773153940894,161.31,86.785,86.59,161.672]
[1773153940895,3.81810522,86.719,86.655,10.385]
[1773153941104,3.81810522,86.719,86.641,3.6721712]
[1773153941403,3.81810522,86.707,86.641,3.6721712]
[1773153941699,3.81810522,86.719,86.641,3.6721712]
[1773153941898,3.81810522,86.712,86.642,10.386]
[1773153942099,3.81810522,86.712,86.643,3.6721712]
[1773153942500,3.81810522,86.709,86.643,3.6721712]
[1773153942996,3.81810522,86.694,86.633,10.388]
[1773153943401,3.81810522,86.694,86.58,9.08599666]
[1773153943402,3.81810522,86.719,86.634,3.6721712]
[1773153943791,3.81810522,86.692,86.634,3.6721712]
[1773153943995,3.81810522,86.692,86.629,10.388]
[1773153944201,3.81810522,86.692,86.626,10.388]
[1773153945103,3.81810522,86.692,86.637,10.387]
[1773153945602,14.19910522,86.691,86.627,3.6721712]
[1773153946003,3.81810522,86.691,86.63,3.6721712]